Cogmind - Beta 15 @@@ ROGUE MODE // 2025.06.21 @ 00:41:13 Player: Jammed Result: Destroyed by G-47 Trooper with Particle Gun Performance ------------- Evolutions (2) 1000 Regions Visited (6) 1200 Robots Destroyed (61) 305 Value Destroyed (1971) 1971 Prototype IDs (0) 0 Alien Tech Used (0) 0 Bonus (221) 221 TOTAL SCORE: 4697 Bonus ------- Follower Combat Kills 21 Entered Garrisons 200 Cogmind --------- Core Integrity 0/550 Matter 278/500 Energy 100/100 System Corruption 0% Temperature Cool (9) Movement Walking (120) Location -8/Garrison Parts ------- > --- POWER (1) -------- (None) > --- PROPULSION (2) --- Carbon-fiber Leg > --- UTILITY (5) ------ High-capacity Matter Pod > --- WEAPON (3) ------- (None) > --- INVENTORY (5) ---- Combat Airjet Advanced Heat Sink System Shield Mining Laser Peak State ------------ > --- POWER ------------ Light Angular Momentum Engine > --- PROPULSION ------- Carbon-fiber Leg Carbon-fiber Leg > --- UTILITY ---------- Improved Heat Sink Large Storage Unit High-capacity Matter Pod Improved Signal Interpreter Targeting Computer > --- WEAPON ----------- Assault Rifle Assault Rifle Heavy Assault Rifle > --- INVENTORY -------- Aluminum Leg Combat Airjet Advanced Heat Sink Improved Sensor Array Experimental Sensor Array Transport Network Coupler System Shield Assault Rifle Light Cannon Assault Cannon Grenade Launcher Datajack Mining Laser [Rating: 27] Favorites ----------- Power Ion Engine Engine Ion Engine Power Core Light Nuclear Core Propulsion Compact Wheel Leg Aluminum Leg Wheel Compact Wheel Utility Large Storage Unit Device Seismic Detector Storage Large Storage Unit Processor Improved Signal Interpreter Hackware Hacking Suite Weapon Light Cannon Energy Gun Small Laser Ballistic Gun Assault Rifle Ballistic Cannon Light Cannon Launcher Grenade Launcher Special Weapon Mining Laser Build | -11 -10 -10 -10 -9 -8 -8 ------- Run | Yrd Mat Min Exi Min Mat Gar Slots Evolved 4 | . . . . . 4 . Power . | . . . . . . . Propulsion . | . . . . . . . Utility 3 | . . . . . 3 . Weapon 1 | . . . . . 1 . Parts Attached 41 | 2 17 . . . 7 15 Power 3 | . 1 . . . 1 1 Engine 2 | . 1 . . . . 1 Core 1 | . . . . . 1 . Reactor . | . . . . . . . Propulsion 12 | . 4 . . . 2 6 Treads . | . . . . . . . Leg 4 | . . . . . . 4 Wheel 8 | . 4 . . . 2 2 Hover . | . . . . . . . Flight . | . . . . . . . Utility 13 | 1 4 . . . 3 5 Device 7 | 1 3 . . . 2 1 Storage 2 | . 1 . . . . 1 Processor 2 | . . . . . 1 1 Hackware 2 | . . . . . . 2 Protection . | . . . . . . . Artifact . | . . . . . . . Weapon 13 | 1 8 . . . 1 3 Energy Gun 1 | 1 . . . . . . Energy Cannon . | . . . . . . . Ballistic Gun 6 | . 3 . . . . 3 Ballistic Cannon 4 | . 3 . . . 1 . Launcher 1 | . 1 . . . . . Special Weapon 1 | . 1 . . . . . Impact Weapon . | . . . . . . . Slashing Weapon . | . . . . . . . Piercing Weapon . | . . . . . . . Special Melee Weapon . | . . . . . . . Unidentified Prototypes . | . . . . . . . Parts Lost 26 | . 3 . . . 1 22 Power 1 | . . . . . . 1 Propulsion 8 | . 1 . . . . 7 Utility 9 | . 2 . . . . 7 Weapon 8 | . . . . . 1 7 Highest Loss Streak 13 | . 1 . . . 1 13 To Critical Strikes . | . . . . . . . Average Backups 12 | 6 10 15 15 14 14 12 Power . | 1 . . . . . . Propulsion 2 | 4 2 4 3 2 2 1 Utility 3 | . 1 4 4 5 5 4 Weapon 5 | 1 6 6 6 6 6 5 Tool/Special . | . . . . . . . Unused Backups 13 | . 4 1 1 . . 7 Power 1 | . 1 . . . . . Propulsion 4 | . . 1 1 . . 2 Utility 6 | . 2 . . . . 4 Weapon 1 | . 1 . . . . . Tool/Special 1 | . . . . . . 1 Average Slot Usage (%) 95 | . 98 100 100 100 93 83 Engine 10 | . 14 14 14 14 8 1 Core 1 | . . . . . . 5 Leg 1 | . 1 . . . . 5 Wheel 22 | . 26 28 28 28 18 10 Device 15 | . 13 14 14 14 26 6 Storage 13 | . 14 14 14 14 9 15 Processor 4 | . . . . . 8 12 Ballistic Gun 3 | . 4 . . . . 13 Ballistic Cannon 20 | . 21 28 28 28 21 7 Peak Build Rating 27 | 7 10 9 9 9 24 27 Average Rating 13 | 6 7 9 9 9 20 19 On Entrance 10 | 6 7 9 9 9 9 24 Naked Turns . | . . . . . . . Heaviest Build 41 | 11 32 32 32 32 40 41 Greatest Support 32 | 20 32 32 32 32 32 32 Greatest Overweight (x) 10 | . 1 . . . 1 10 Average Overweight (x) . | . . . . . 1 1 Largest Inventory Capacity 15 | 8 15 15 15 15 15 15 Average Capacity 13 | 8 12 15 15 15 15 14 Most Carried 15 | 7 15 15 15 15 15 15 Average Carried 12 | 6 10 14 14 14 14 12 Final Capacity 15 | 8 15 15 15 15 15 5 Final Carried 15 | 7 15 15 15 15 15 4 Class Distribution -------------------- 79% | Mutant 10% | Skirmisher 7% | Scavenger-Gunner Dominant Class ---------------- Mutant | -10/Materials Mutant | -10/Mines Mutant | -10/Exiles Mutant | -9/Mines Mutant | -8/Materials Scavenger-Gunner | -8/Garrison Resources | -11 -10 -10 -10 -9 -8 -8 ----------- Run | Yrd Mat Min Exi Min Mat Gar Matter Collected 1709 | 220 590 33 . 16 519 331 Remotely . | . . . . . . . Salvage Created 1595 | 148 641 . . 29 341 436 Parts 111 | 12 58 . . 2 20 19 Haulers Intercepted 4 | . 2 . . . 2 . Recyclers Shooed . | . . . . . . . Parts Field Recycled . | . . . . . . . Retrieved Matter . | . . . . . . . Parts Self-Destructed . | . . . . . . . Prevented . | . . . . . . . Kills | -11 -10 -10 -10 -9 -8 -8 ------- Run | Yrd Mat Min Exi Min Mat Gar Combat Hostiles Destroyed 38 | . 15 . . 2 10 11 Guns 8 | . . . . . . 8 Cannons 28 | . 13 . . 2 10 3 AOE 2 | . 2 . . . . . Classes Destroyed 14 | 2 7 . . . 1 4 Worker 4 | . 3 . . . 1 . Builder 2 | . 2 . . . . . Tunneler 4 | 4 . . . . . . Hauler 4 | . 2 . . . 2 . Recycler 3 | 1 1 . . . 1 . Operator 2 | . 2 . . . . . Watcher 4 | . 3 . . . 1 . Swarmer 9 | . 3 . . 2 4 . Grunt 23 | . 12 . . . 4 7 Brawler 1 | . . . . . . 1 Duelist 1 | . . . . . . 1 Sentry 2 | . . . . . 2 . Demolisher 1 | . . . . . . 1 Hunter 1 | . . . . . . 1 Best Kill Streak 5 | 3 4 . . 2 5 3 Combat Bots Only 3 | . 3 . . 2 3 3 Max Kills in Single Turn 2 | 1 2 . . 1 1 1 Gunslinging . | . . . . . . . Exploded 2 | . 2 . . . . . Melee . | . . . . . . . Uniques/NPCs Destroyed . | . . . . . . . Combat | -11 -10 -10 -10 -9 -8 -8 -------- Run | Yrd Mat Min Exi Min Mat Gar Hostile Shots Fired 252 | . 47 . . 5 60 140 Missed 62 | . 6 . . 1 20 35 Hits 190 | . 41 . . 4 40 105 Melee 6 | . . . . . . 6 Projectile 184 | . 41 . . 4 40 99 AOE 8 | . . . . . . 8 Critical Strikes 12 | . 2 . . . 2 8 Damage Taken 2686 | . 441 . . 26 339 1880 Core 622 | . 49 . . 14 49 510 Absorbed by Shields 196 | . . . . . 134 62 Regen/Repaired (Parts) 96 | . 96 . . . . . Core Remaining (%) 87 | 100 . . . 74 . . Volleys Fired 174 | 10 56 . . 2 56 50 Largest 3 | 2 2 . . 2 3 3 Hottest 100 | 80 100 . . 60 97 87 Shots Fired 348 | 20 106 . . 4 97 121 Gun 124 | 20 20 . . . . 84 Cannon 217 | . 80 . . 4 96 37 Launcher 2 | . 1 . . . 1 . Special 5 | . 5 . . . . . Kinetic 317 | . 96 . . 4 96 121 Thermal 29 | 20 9 . . . . . Explosive 2 | . 1 . . . 1 . Electromagnetic . | . . . . . . . Robot Hit Streak 16 | 5 10 . . 2 6 16 Robot Miss Streak 6 | 1 6 . . 1 5 3 Penetration Max . | . . . . . . . Secondary Targets 1 | . . . . . . 1 Max Gunslinging Chain 1 | . . . . . . 1 Shots Hit Robots 187 | 13 42 . . 2 49 81 Core Hits 87 | 6 30 . . 2 19 30 Critical Kills 1 | . . . . . . 1 Critical Parts Destroyed 1 | . 1 . . . . . Critical Strikes 13 | . 5 . . . 6 2 Destroy 2 | . 1 . . . . 1 Blast 11 | . 4 . . . 6 1 Melee Attacks . | . . . . . . . Impact . | . . . . . . . Slashing . | . . . . . . . Piercing . | . . . . . . . Sneak Attacks . | . . . . . . . Combat Hostiles . | . . . . . . . Follow-up Attacks . | . . . . . . . Damage Inflicted 3450 | 137 1090 . . 38 1000 1185 Guns 1041 | 137 45 . . . . 859 Cannons 2150 | . 786 . . 38 1000 326 Explosions 259 | . 259 . . . . . Melee . | . . . . . . . Ramming . | . . . . . . . Kinetic 3042 | . 819 . . 38 1000 1185 Thermal 322 | 137 185 . . . . . Explosive 86 | . 86 . . . . . Electromagnetic . | . . . . . . . Impact . | . . . . . . . Slashing . | . . . . . . . Piercing . | . . . . . . . Highest Corruption . | . . . . . . . Average Corruption . | . . . . . . . Corruption Purged . | . . . . . . . Corruption Blocked . | . . . . . . . Overload Shots . | . . . . . . . Overflow Damage 62 | . 24 . . . 38 . Projectiles 38 | . . . . . 38 . Explosions 24 | . 24 . . . . . Melee . | . . . . . . . Knockbacks 26 | . 8 . . . 12 6 Impact . | . . . . . . . Kinetic 23 | . 7 . . . 11 5 Secondary 3 | . 1 . . . 1 1 Self-Inflicted Damage . | . . . . . . . Shots . | . . . . . . . Rammed . | . . . . . . . Targets Rammed . | . . . . . . . Kicked . | . . . . . . . Crushed . | . . . . . . . Highest Temperature 113 | 90 60 . . . 11 113 Average Temperature 32 | 39 23 . . . 7 43 Received Heat Transfer 1154 | . 156 . . . 116 882 Siege Activations . | . . . . . . . Martial Activations . | . . . . . . . Shielding Activations . | . . . . . . . Robots Disrupted . | . . . . . . . Combat Hostiles . | . . . . . . . Robots Corrupted . | . . . . . . . Combat Hostiles . | . . . . . . . Parts Fried . | . . . . . . . Impact Corruptions . | . . . . . . . Robots Melted . | . . . . . . . Combat Hostiles . | . . . . . . . Parts Melted 2 | 1 . . . 1 . . Heat Transferred 500 | 325 175 . . . . . Parts Sabotaged . | . . . . . . . Parts Stolen . | . . . . . . . Parts Stripped . | . . . . . . . Power Chain Reactions . | . . . . . . . Alert | -11 -10 -10 -10 -9 -8 -8 ------- Run | Yrd Mat Min Exi Min Mat Gar Maximum Alert Level 1 | . . . . . . 1 Low Security (%) 90 | 100 100 100 . 100 100 42 Level 1 9 | . . . . . . 57 Level 2 . | . . . . . . . Level 3 . | . . . . . . . Level 4 . | . . . . . . . Level 5 . | . . . . . . . High Security . | . . . . . . . Max Security . | . . . . . . . Peak Influence 330 | 10 153 51 . 40 105 330 Initial 51 | . 6 51 . . . 14 Average 58 | 3 41 7 . 6 34 197 Influence Increases 1603 | 25 596 46 . 73 377 486 Destroy 0b10 Robot/C 820 | . 300 40 . 60 200 220 Destroy 0b10 Robot/NC 115 | 25 65 . . . 25 . Destroy Leader 166 | . 80 . . 10 46 30 Allied During Kill 9 | . . 6 . 3 . . Successful Hack 58 | . 8 . . . 24 26 Select Force Hacks 60 | . 60 . . . . . Disable Machine 90 | . 60 . . . 15 15 Anti-Garrison Action 150 | . . . . . . 150 Destroy Structure 45 | . 8 . . . 22 15 Lose Combat Pursuer 90 | . 15 . . . 45 30 Influence Decreases 1323 | 15 473 141 38 73 355 228 Entered New Map 132 | . 4 82 38 . . 8 Time Decay 918 | 15 449 59 . 50 345 . Lost Part 250 | . 20 . . . 10 220 Lost Ally 23 | . . . . 23 . . Squads Dispatched 9 | . 5 . . . 4 . Investigation 4 | . 3 . . . 1 . Extermination . | . . . . . . . Reinforcement 2 | . 2 . . . . . Assault . | . . . . . . . Garrison 3 | . . . . . 3 . Intercept . | . . . . . . . Searches Triggered . | . . . . . . . Construction Impeded . | . . . . . . . Haulers Reinforced . | . . . . . . . Active Scanning Responses . | . . . . . . . Cargo Convoy Interrupts . | . . . . . . . Stealth | -11 -10 -10 -10 -9 -8 -8 --------- Run | Yrd Mat Min Exi Min Mat Gar Distress Signals 1 | . 1 . . . . . Communications Jammed . | . . . . . . . Distress Signals . | . . . . . . . Times Spotted 61 | . 27 . . 3 15 16 Peak Tracking Total 4 | . 3 . . 3 3 4 Tactical Retreats 3 | . 1 . . . 1 1 Traps | -11 -10 -10 -10 -9 -8 -8 ------- Run | Yrd Mat Min Exi Min Mat Gar Traps Triggered 2 | . . . . . 1 1 Indirectly . | . . . . . . . Trap Hack Attempts . | . . . . . . . Triggered . | . . . . . . . Disarmed . | . . . . . . . Reprogrammed . | . . . . . . . Reused . | . . . . . . . Traps Extracted . | . . . . . . . Installed . | . . . . . . . Triggered . | . . . . . . . Machines | -11 -10 -10 -10 -9 -8 -8 ---------- Run | Yrd Mat Min Exi Min Mat Gar Machines Disabled 8 | . 4 . . . 1 3 Max in Single Turn 2 | . 2 . . . 1 1 Garrison Relay 2 | . . . . . . 2 Machines Repaired . | . . . . . . . Machines Dismantled . | . . . . . . . Machines Sabotaged . | . . . . . . . Overloaded Fab Kills . | . . . . . . . Hacking | -11 -10 -10 -10 -9 -8 -8 --------- Run | Yrd Mat Min Exi Min Mat Gar Machines Accessed 18 | . 8 . 1 . 7 2 Terminals 13 | . 5 . . . 6 2 Fabricators . | . . . . . . . Repair Stations 1 | . 1 . . . . . Recycling Units 2 | . 2 . . . . . Scanalyzers . | . . . . . . . Garrison Access 1 | . . . . . 1 . Total Hacks 51 | . 23 . 1 . 24 3 Successful 29 | . 14 . 1 . 12 2 Failed 22 | . 9 . . . 12 1 Catastrophic 1 | . . . . . . 1 Database Lockouts . | . . . . . . . Manual 35 | . 15 . . . 20 . Terminals 40 | . 15 . . . 22 3 Fabricators . | . . . . . . . Repair Stations 5 | . 5 . . . . . Recycling Units 3 | . 3 . . . . . Scanalyzers . | . . . . . . . Garrison Access 2 | . . . . . 2 . Terminal Hacks 7 | . 1 . 1 . 3 2 Record 1 | . . . 1 . . . Alert Level 1 | . . . . . 1 . Locate Traps 1 | . 1 . . . . . Hauler Manifests 1 | . . . . . 1 . Zone Layout 1 | . . . . . 1 . Garrison Registry 1 | . . . . . . 1 Security Stations 1 | . . . . . . 1 Fabricator Hacks . | . . . . . . . Repair Station Hacks 3 | . 3 . . . . . Scan Component 2 | . 2 . . . . . Repair 1 | . 1 . . . . . Recycling Unit Hacks 1 | . 1 . . . . . Report Inventory 1 | . 1 . . . . . Scanalyzer . | . . . . . . . Garrison Access Hacks 1 | . . . . . 1 . Unlock Access 1 | . . . . . 1 . Unauthorized Hacks 17 | . 9 . . . 8 . Terminals 15 | . 7 . . . 8 . Assimilate 1 | . . . . . 1 . Botnet 4 | . 2 . . . 2 . Operators 1 | . 1 . . . . . Skim 9 | . 4 . . . 5 . Fabricators . | . . . . . . . Repair Stations . | . . . . . . . Recycling Units 2 | . 2 . . . . . Tunnel 2 | . 2 . . . . . Scanalyzers . | . . . . . . . Garrison Access . | . . . . . . . Data Cores Recovered . | . . . . . . . Used . | . . . . . . . Hacking Detections 15 | . 7 . . . 6 2 Full Trace Events 2 | . 1 . . . . 1 Feedback Events . | . . . . . . . Feedback Blocked . | . . . . . . . Robot Schematics Acquired . | . . . . . . . Robots Built . | . . . . . . . Authchips . | . . . . . . . Time . | . . . . . . . Total Robot Build Rating . | . . . . . . . Part Schematics Acquired . | . . . . . . . Parts Built . | . . . . . . . Authchips . | . . . . . . . Time . | . . . . . . . Total Part Build Rating . | . . . . . . . Parts Repaired 1 | . 1 . . . . . Time 26 | . 26 . . . . . Parts Recycled . | . . . . . . . Recycled Matter . | . . . . . . . Retrieved Matter . | . . . . . . . Retrieved Components . | . . . . . . . Parts Scanalyzed . | . . . . . . . Part Schematics Acquired . | . . . . . . . Parts Damaged . | . . . . . . . Bothacking | -11 -10 -10 -10 -9 -8 -8 ------------ Run | Yrd Mat Min Exi Min Mat Gar Used RIF Installer . | . . . . . . . Robots Hacked . | . . . . . . . Non-combat . | . . . . . . . Combat . | . . . . . . . Robot Hacks Applied . | . . . . . . . Relay Couplers Released 6 | . . . . . . 6 Machine Destruction 6 | . . . . . . 6 Fabnet Peak Effective % . | . . . . . . . Robots Rewired . | . . . . . . . Allies Hacked . | . . . . . . . Hacks Repelled . | . . . . . . . Allies | -11 -10 -10 -10 -9 -8 -8 -------- Run | Yrd Mat Min Exi Min Mat Gar Total Allies 4 | . . 3 . . 1 . Largest Group 3 | . . 3 3 3 1 . Highest-Rated Group 40 | . . 40 40 40 10 . Highest-Rated Ally 16 | . . 16 16 16 10 . Total Orders 4 | . . . . . 4 . STAY 2 | . . . . . 2 . FOLLOW 2 | . . . . . 2 . Ally Attacks 7 | . . 2 . 5 . . Total Damage 89 | . . 23 . 66 . . Kills 3 | . . 2 . 1 . . Allies Corrupted . | . . . . . . . Allies Melted . | . . . . . . . Intel | -11 -10 -10 -10 -9 -8 -8 ------- Run | Yrd Mat Min Exi Min Mat Gar Active Infowar (turns) 3660 | 48 1396 516 228 320 1118 34 Sensors 1107 | . . . . . 1073 34 Seismic 2557 | 48 1396 516 228 320 49 . Robot Analysis Total . | . . . . . . . Derelict Logs Recovered 4 | . . 3 . 1 . . Drone Launches . | . . . . . . . Drone Recoveries . | . . . . . . . Exploration | -11 -10 -10 -10 -9 -8 -8 ------------- Run | Yrd Mat Min Exi Min Mat Gar Turns Passed 4651 | 78 1664 516 228 320 1118 727 Spaces Moved 3003 | 29 1176 436 216 232 548 366 Core 29 | . . . . . . 29 Treads . | . . . . . . . Legs 164 | 29 60 . . . . 75 Wheels 2810 | . 1116 436 216 232 548 262 Hover . | . . . . . . . Flight . | . . . . . . . Fastest Speed 90 | 120 90 100 100 100 115 100 Average Speed 106 | 120 98 100 100 100 115 129 Slowest Speed 550 | 120 120 100 100 100 115 550 Overloaded Moves . | . . . . . . . Propulsion Burnouts . | . . . . . . . Robots Hopped . | . . . . . . . Potential Cave-ins . | . . . . . . . Cave-ins Triggered . | . . . . . . . Exploration Rate (%) 48 | 3 98 60 57 40 28 55 Regions Visited 6 Branch Regions 3 Pre-discovered Areas 5 | . 2 1 1 . 1 . Known Exits Taken 1 | . . . . . 1 . Unknown Exits Taken 5 | 1 1 1 1 1 . . Scrap Searched 3 | . . 1 . 2 . . Spaces Dug 17 | . 3 . . . 14 . Terrain Destroyed 28 | . 5 . . . 23 . Melee . | . . . . . . . Projectile 19 | . 5 . . . 14 . AOE 9 | . . . . . 9 . Terrain Rammed . | . . . . . . . Walls Destroyed . | . . . . . . . Machines Disabled . | . . . . . . . Actions | -11 -10 -10 -10 -9 -8 -8 --------- Run | Yrd Mat Min Exi Min Mat Gar Total 4128 | 51 1559 516 228 316 945 513 Wait 845 | 10 273 79 11 81 324 67 Move 2997 | 28 1175 435 215 231 547 366 Hop . | . . . . . . . Pick Up 29 | 1 17 1 1 1 3 5 Fast Attach 15 | 1 5 . . . 3 6 Attach 16 | . 4 . . . 2 10 Detach . | . . . . . . . Swap 31 | 1 17 . . . 5 8 Drop 21 | . 12 1 1 1 5 1 Fire 174 | 10 56 . . 2 56 50 Melee . | . . . . . . . Ram . | . . . . . . . Kick . | . . . . . . . Crush . | . . . . . . . Escape Stasis . | . . . . . . . Rewire . | . . . . . . . Trap . | . . . . . . . Miscellaneous . | . . . . . . . Route ------- -11/Scrapyard -10/Materials (discovered 4 exits: [*Mat x3] / [*Min]) -10/Mines (discovered 2 exits: *Exi / [*Sub]) -10/Exiles -9/Mines -8/Materials (discovered 2 exits: [*Fac] / Gar) -8/Garrison (discovered 3 exits: [*Fac x3]) History --------- Turn | Location | Event 12 | -11/Scrapyard | Discovered new exit (range 3) 79 | -11/Scrapyard | Entered Materials 274 | -10/Materials | Discovered new exit (range 8) 314 | -10/Materials | Build established: Mutant 428 | -10/Materials | Discovered new exit (range 14) 443 | -10/Materials | Discovered new exit (range 13) 1017 | -10/Materials | Discovered new exit (range 16) 1356 | -10/Materials | Repaired Lgt. Cannon 1743 | -10/Materials | Entered Mines 1802 | -10/Mines | Learned Materials terminal intel 1914 | -10/Mines | Assembled infested the area 2014 | -10/Mines | Assisted by bots powering up and referring to "LRC-V3" 2037 | -10/Mines | Discovered new exit (range 5) 2103 | -10/Mines | Learned Materials security intel 2105 | -10/Mines | Discovered new exit (range 7) 2106 | -10/Mines | Learned location of Zion (-6) 2259 | -10/Mines | Entered Exiles 2259 | -10/Exiles | Accompanied by 3 allies 2283 | -10/Exiles | Met 8R-AWN 2300 | -10/Exiles | Met EX-HEX 2337 | -10/Exiles | Met EX-DEC 2465 | -10/Exiles | Discovered new exit (range 10) 2487 | -10/Exiles | Entered Mines 2487 | -9/Mines | Accompanied by 3 allies 2544 | -9/Mines | Learned Materials terminal intel 2554 | -9/Mines | Lost 3 allies 2560 | -9/Mines | Discovered new exit (range 10) 2593 | -9/Mines | Found a damaged Exp. Sensor Array with a note attached 2596 | -9/Mines | Found Prototype Device 2807 | -9/Mines | Entered Materials 2807 | -8/Materials | Evolved 4 slots: Utility x3, Weapon x1 2809 | -8/Materials | Loaded intel: 12 terminal locations 3188 | -8/Materials | Garrison activated, responded to threat 3423 | -8/Materials | Discovered new exit (range 22) 3557 | -8/Materials | Learned Storage emergency access door positions 3601 | -8/Materials | Learned 4 Lower Caves zone layouts 3631 | -8/Materials | Build established: Skirmisher 3633 | -8/Materials | Learned Storage emergency access door positions 3654 | -8/Materials | Learned location of 1 exit from Recycling 3665 | -8/Materials | Learned location of 1 exit from Storage 3668 | -8/Materials | Learned location of 1 exit from Lower Caves 3682 | -8/Materials | Learned 2 Lower Caves zone layouts 3706 | -8/Materials | Learned 2 Lower Caves zone layouts 3918 | -8/Materials | Identified exit to Garrison 3925 | -8/Materials | Entered Garrison 3945 | -8/Garrison | Learned Factory security intel 4019 | -8/Garrison | Triggered checkpoint 4062 | -8/Garrison | Discovered new exit (range 76) 4062 | -8/Garrison | Discovered new exit (range 76) 4062 | -8/Garrison | Discovered new exit (range 40) 4072 | -8/Garrison | Garrison Relay disabled 4093 | -8/Garrison | Garrison Relay disabled 4151 | -8/Garrison | Triggered checkpoint 4400 | -8/Garrison | Lost 4 parts (1p2n1u) 4443 | -8/Garrison | Triggered checkpoint 4557 | -8/Garrison | Core integrity fell below 50% 4611 | -8/Garrison | Core integrity fell below 20% 4637 | -8/Garrison | Lost 13 parts (3n3u7w) 4652 | -8/Garrison | Destroyed by G-47 Trooper with Particle Gun Last Messages --------------- 04553_ G-47 Trooper unfolds itself. 04561_ Lgt. Angular Momentum Engine severed. 04561_ Hvy. Assault Rifle destroyed. 04562_ Carbon-fiber Leg destroyed. 04562_ Assault Rifle destroyed. 04564_ Targeting Computer destroyed. 04566_ Imp. Signal Interpreter destroyed. 04578_ L-31 Rogue destroyed. 04582_ G-47 Trooper knocked back. 04583_ Imp. Heat Sink destroyed. 04585_ G-47 Trooper destroyed. 04585_ Lgt. Cannon destroyed. 04588_ Assault Rifle destroyed. 04589_ Assault Cannon destroyed. 04591_ Dropped Lrg. Storage Unit. 04593_ Aluminum Leg destroyed. 04594_ Acquired Grenade Launcher. 04598_ Aluminum Leg destroyed. 04598_ Critical hit (Burn: +37). 04606_ Grenade Launcher destroyed. Map ----- +----------------------------------------------------+ | ?????????????????????????????????????????????????? | | ?????????????????????????????????????????????????? | | ?????????????????????????????????????????????????? | | ?????????????????????????????????????????????????? | | ?????????????????????????????????????????????????? | | ?????????????????????????????????????????????????? | | ?????????????????????????????????????????????????? | | ?????????????????????????????????????????????????? | | ?????????????????????????????????????????????????? | | ?????????????????????????????????????????????????? | | ?????????????????????#######?????????????????##### | | ?????????????????????# #?????????????????# | | ?????????????????????# < #####?????????????# | | ?????????????????????# ## #?????????????# ## | | ?????????????????????### + #?????????????# #? | | ???????????????????????# #####?????????????# #? | | ???????????????????????# #?????????????????# #? | | ???????????????????????# #?????????????????# #? | | ???????????????????????#g #?????????????????# #? | | ???????????????????????# g#?????????????????# #? | | ???????????????????????# #?????????????????# #? | | ???????????????????????# #?????????????????# #? | | ???????????????????????# #?????????????????# #? | | ???????????????????????# #?????????????????# #? | | ???????????????????????# #?????????????????# #? | | ???????????????????????# @ #?????????????????# #? | | ???????????????????????# #?????????????????# #? | | ???????????????????????# #?????????????????# #? | | ???????????????????????# #?????????????????# #? | | ???????????????????????# #?????????????????# #? | | ???????????????????????# #?????????????????# #? | | ???????????????????????# #?????????????????# #? | | ???????????????????????# #?????????????????# ## | | ????????################ ############??????# [[ | | ????????# ^^ + #??????# | | ????????# ^^ + #??????# ## | | ????????### #####"""## #### #### #??????# #? | | ?????????#"""""#??# ## #??# #??# #??????# #? | | ?????????#######??##+### #??# #??# #??????# #? | | ???????????????????# #?# =!#??# #??# #??????# #? | | ???????????????????# #?# !!#??# #??# ######## #? | | ???????????????????# #?# !*#??# #??# ## ## #? | | ???????????????????# ###%%%####+####++## ## ## | | ???????????????????# /% =/ * / ![ = # | | ???????????????????##### % [ * # | | ???????????????????????# % " * =! # | | ???????????????????????############%" ## ## # | | ????????????????????????????????###^^^## ## # | | ????????????????????????????????# "^^^ | | ????????????????????????????????# " | +----------------------------------------------------+ Best States ------------- Heat Dissipation 45 Energy Generation 18 Energy Capacity 250 Matter Stores 490 Matter Capacity 500 Sight Range 16 Robot Scan Range 15 Terrain Scan Density 10 Evasion (%) 55 Targeting Accuracy 5 Offensive Hacking 20 Item Schematics ----------------- None Robot Schematics ------------------ None Fabricated ------------ Nothing Repaired ---------- Lgt. Cannon | 20% | -10/Materials Alien Tech Used ----------------- None Achievements -------------- None Challenges ------------ None Game ------ Seed AssemblyCompactDeflector Manual? 0 Play Time 00:29:32 Cumulative 292.2 hours Start 2025.06.21 @ 00:11:26 End 2025.06.21 @ 00:41:13 Sessions 1 Manual Loads 0 Difficulty Rogue Special Mode None Game No. 184 Rogue 184 Adventurer 0 Explorer 0 Win Type - Total 2 Types 1/0/0/1/0/0/0/0/0/0 Lore% 81 Gallery% 65 Achievement% 62 Wizard Run 0 Options --------- Layout 0 ASCII 0 Keyboard 0 Movement Mouse Keybinds 0 Fullscreen 1 Font 18/SmallcapsGlow Map View 76x50 Zoom Use 0% Tactical HUD 1 Map Filters NONE Filters NONE Steam 1 RUN: 43793b92-acb0-4837-8d24-d23357b8f675